fUST/lending_fUST_20250817
["ID","MTS","AMOUNT","RATE_DAILY","PERIOD"]
[379706095,1755377452296,-151.0,0.00020567,2]
[379706096,1755377452306,-151.0,0.00020567,2]
[379706097,1755377452315,-678.21292831,0.00020579,2]
[379706098,1755377452324,-220.898,0.00020583,2]
[379706099,1755377452334,-153.0,0.000206,2]
[379706100,1755377452344,-153.0,0.000206,2]
[379706101,1755377452354,-153.0,0.000206,2]
[379706102,1755377452365,-153.0,0.000206,2]
[379706103,1755377452374,-153.0,0.000206,2]
[379706104,1755377452384,-153.0,0.000206,2]
[379706105,1755377452394,-153.0,0.000206,2]
[379706106,1755377452403,-153.0,0.000206,2]
[379706107,1755377452413,-153.0,0.000206,2]
[379706108,1755377452422,-311.055374,0.000206,2]
[379706109,1755377452432,-153.0,0.000206,2]
[379706110,1755377452441,-153.0,0.000206,2]
[379706111,1755377452452,-153.0,0.000206,2]
[379706112,1755377452462,-153.0,0.000206,2]
[379706113,1755377452471,-153.0,0.000206,2]
[379706114,1755377452481,-153.0,0.000206,2]
[379706115,1755377452491,-153.0,0.000206,2]
[379706116,1755377452502,-153.0,0.000206,2]
[379706117,1755377452511,-153.0,0.000206,2]
[379706118,1755377452522,-306.0,0.000206,2]
[379706119,1755377452532,-151.0,0.000206,3]
[379706120,1755377452542,-420.6291706,0.00020606,2]
[379706121,1755377452551,-515.9,0.00020608,2]
[379706122,1755377452560,-515.9,0.00020608,2]
[379706123,1755377452569,-515.9,0.00020608,2]
[379706124,1755377452579,-515.9,0.00020608,2]
[379706125,1755377452592,-515.97523164,0.00020608,2]
[379706126,1755377452604,-168.0,0.00020632,2]
[379706127,1755377452615,-151.0,0.00020655,2]
[379706128,1755377452636,-151.0,0.00020655,2]
[379706129,1755377452668,-151.0,0.00020655,2]
[379706130,1755377452687,-168.0,0.00020673,2]
[379706131,1755377452696,-168.0,0.00020696,2]
[379706132,1755377452705,-151.0,0.000207,3]
[379706133,1755377452716,-480.0,0.00020705,2]
[379706134,1755377452727,-714.33,0.00020705,2]
[379706135,1755377452736,-1057.45,0.00020705,2]
[379706136,1755377452745,-3247.78,0.00020705,2]
[379706137,1755377452754,-300.80260306,0.00020705,2]
[379706138,1755377452763,-648.89,0.00020705,2]
[379706139,1755377452772,-653.28,0.00020706,2]
[379706140,1755377452781,-151.0,0.00020706,2]
[379706141,1755377452790,-151.0,0.00020706,2]
[379706142,1755377452837,-480.0,0.00020706,2]
[379706143,1755377452846,-480.0,0.00020706,2]
[379706144,1755377452855,-480.0,0.00020706,2]
[379706145,1755377452863,-480.0,0.00020706,2]
[379706146,1755377452872,-151.0,0.00020706,2]
[379706147,1755377452881,-151.0,0.00020706,2]
[379706148,1755377452890,-480.0,0.00020706,2]
[379706149,1755377452899,-480.0,0.00020706,2]
[379706150,1755377452908,-1272.27,0.00020706,2]
[379706151,1755377452916,-480.0,0.00020706,2]
[379706152,1755377452926,-1581.69,0.00020706,2]
[379706153,1755377452935,-480.0,0.00020706,2]
[379706154,1755377452944,-480.0,0.00020706,2]
[379706155,1755377452953,-624.61,0.00020706,2]
[379706156,1755377452962,-694.75,0.00020706,2]
[379706157,1755377452971,-151.0,0.00020706,2]
[379706158,1755377452980,-462.87207494,0.00020706,2]
[379706159,1755377452989,-480.0,0.00020706,2]
[379706160,1755377452997,-480.0,0.00020706,2]
[379706161,1755377453006,-480.0,0.00020706,2]
[379706162,1755377453015,-541.32,0.00020706,2]
[379706163,1755377453024,-1710.57,0.00020706,2]
[379706164,1755377453033,-498.82,0.00020706,2]
[379706165,1755377453042,-631.87,0.00020706,2]
[379706166,1755377453050,-480.0,0.00020706,2]
[379706167,1755377453059,-480.0,0.00020706,2]
[379706168,1755377453068,-420.0,0.00020706,2]
[379706169,1755377453077,-480.0,0.00020706,2]
[379706170,1755377453086,-480.0,0.00020706,2]
[379706171,1755377453095,-480.0,0.00020706,2]
[379706172,1755377453104,-719.38,0.00020706,2]
[379706173,1755377453113,-873.1,0.00020706,2]
[379706174,1755377453122,-480.0,0.00020706,2]
[379706175,1755377453131,-420.0,0.00020706,2]
[379706176,1755377453140,-1231.06,0.00020706,2]
[379706177,1755377453150,-480.0,0.00020706,2]
[379706178,1755377453159,-400.0,0.00020706,2]
[379706179,1755377453168,-480.0,0.00020706,2]
[379706180,1755377453177,-476.04127908,0.00020706,2]
[379706181,1755377453188,-480.0,0.00020706,2]
[379706182,1755377453197,-1046.39,0.00020706,2]
[379706183,1755377453206,-480.0,0.00020706,2]
[379706184,1755377453216,-480.0,0.00020706,2]
[379706185,1755377453225,-480.0,0.00020706,2]
[379706186,1755377453234,-577.35,0.00020706,2]
[379706188,1755377453244,-420.0,0.00020706,2]
[379706190,1755377453253,-480.0,0.00020706,2]
[379706192,1755377453267,-501.27,0.00020706,2]
[379706194,1755377453276,-282.54263675,0.00020706,2]
[379706196,1755377453285,-460.0,0.00020706,2]
[379706197,1755377453294,-480.0,0.00020706,2]
[379706198,1755377453304,-480.0,0.00020706,2]
[379706199,1755377453313,-480.0,0.00020706,2]
[379706200,1755377453323,-480.0,0.00020706,2]
[379706201,1755377453332,-480.0,0.00020706,2]
[379706202,1755377453341,-480.0,0.00020706,2]
[379706203,1755377453351,-480.0,0.00020706,2]
[379706204,1755377453360,-480.0,0.00020706,2]
[379706205,1755377453370,-151.0,0.00020706,2]
[379706206,1755377453379,-801.97,0.00020706,2]
[379706207,1755377453389,-1220.35,0.00020706,2]
[379706208,1755377453398,-1111.61,0.00020706,2]
[379706209,1755377453408,-151.0,0.00020706,2]
[379706210,1755377453419,-2109.62,0.00020706,2]
[379706211,1755377453430,-588.53055236,0.00020706,2]
[379706212,1755377453440,-480.0,0.00020706,2]
[379706213,1755377453450,-1095.32,0.00020706,2]
[379706214,1755377453459,-151.0,0.00020706,2]
[379706215,1755377453469,-460.0,0.00020706,2]
[379706216,1755377453479,-480.0,0.00020706,2]
[379706217,1755377453489,-151.884947,0.00020706,2]
[379706218,1755377453498,-866.67,0.00020706,2]
[379706219,1755377453507,-480.0,0.00020706,2]
[379706220,1755377453517,-758.03,0.00020706,2]
[379706221,1755377453526,-460.0,0.00020706,2]
[379706222,1755377453536,-757.7,0.00020706,2]
[379706223,1755377453546,-420.0,0.00020706,2]
[379706224,1755377453555,-480.0,0.00020706,2]
[379706225,1755377453566,-480.0,0.00020706,2]
[379706226,1755377453575,-480.0,0.00020706,2]
[379706227,1755377453585,-6017.76,0.00020706,2]
[379706228,1755377453596,-480.0,0.00020706,2]
[379706229,1755377453605,-1828.0,0.00020706,2]
[379706230,1755377453614,-480.0,0.00020706,2]
[379706231,1755377453624,-151.0,0.00020706,2]
[379706232,1755377453633,-400.0,0.00020706,2]
[379706233,1755377453643,-480.0,0.00020706,2]
[379706234,1755377453652,-504.7,0.00020706,2]
[379706235,1755377453662,-480.0,0.00020706,2]
[379706236,1755377453672,-480.0,0.00020706,2]
[379706237,1755377453681,-1067.99,0.00020706,2]
[379706238,1755377453691,-1328.49,0.00020706,2]
[379706239,1755377453700,-542.05,0.00020706,2]
[379706240,1755377453710,-480.0,0.00020706,2]
[379706241,1755377453722,-480.0,0.00020706,2]
[379706242,1755377453732,-763.06,0.00020706,2]
[379706243,1755377453741,-480.0,0.00020706,2]
[379706244,1755377453751,-480.0,0.00020706,2]
[379706245,1755377453763,-480.0,0.00020706,2]
[379706246,1755377453772,-487.86,0.00020706,2]
[379706247,1755377453781,-440.0,0.00020706,2]
[379706248,1755377453791,-1131.85,0.00020706,2]
[379706249,1755377453801,-480.0,0.00020706,2]
[379706250,1755377453812,-480.0,0.00020706,2]
[379706251,1755377453821,-993.99,0.00020706,2]
[379706252,1755377453831,-723.33,0.00020706,2]
[379706253,1755377453840,-1209.54,0.00020706,2]
[379706254,1755377453851,-872.26,0.00020706,2]
[379706255,1755377453860,-480.0,0.00020706,2]
[379706256,1755377453870,-480.0,0.00020706,2]
[379706257,1755377453879,-795.91,0.00020706,2]
[379706258,1755377453888,-622.7,0.00020706,2]
[379706259,1755377453897,-1312.48,0.00020706,2]
[379706260,1755377453907,-480.0,0.00020706,2]
[379706261,1755377453916,-480.0,0.00020706,2]
[379706262,1755377453925,-1015.01,0.00020706,2]
[379706263,1755377453935,-535.29,0.00020706,2]
[379706264,1755377453945,-772.23,0.00020706,2]
[379706265,1755377453955,-1030.57,0.00020706,2]
[379706266,1755377453965,-1332.15,0.00020706,2]
[379706267,1755377453974,-829.02,0.00020706,2]
[379706268,1755377453984,-793.16,0.00020706,2]
[379706269,1755377453993,-480.0,0.00020706,2]
[379706270,1755377454003,-515.62,0.00020706,2]
[379706271,1755377454012,-280.0,0.00020706,2]
[379706272,1755377454022,-480.0,0.00020706,2]
[379706273,1755377454032,-480.0,0.00020706,2]
[379706274,1755377454041,-480.0,0.00020706,2]
[379706275,1755377454051,-923.85,0.00020706,2]
[379706276,1755377454060,-510.45,0.00020706,2]
[379706277,1755377454070,-480.0,0.00020706,2]
[379706278,1755377454079,-480.0,0.00020706,2]
[379706279,1755377454090,-2299.76,0.00020706,2]
[379706280,1755377454101,-11198.0,0.00020706,2]
[379706281,1755377454110,-480.0,0.00020706,2]
[379706282,1755377454120,-360.0,0.00020706,2]
[379706283,1755377454129,-4358.2,0.00020706,2]
[379706284,1755377454139,-480.0,0.00020706,2]
[379706285,1755377454148,-1115.72,0.00020706,2]
[379706286,1755377454157,-440.0,0.00020706,2]
[379706287,1755377454167,-521.49,0.00020706,2]
[379706288,1755377454176,-480.0,0.00020706,2]
[379706289,1755377454186,-480.0,0.00020706,2]
[379706290,1755377454195,-3223.97,0.00020706,2]
[379706291,1755377454204,-480.0,0.00020706,2]
[379706292,1755377454214,-480.0,0.00020706,2]
[379706293,1755377454223,-1480.48,0.00020706,2]
[379706294,1755377454233,-480.0,0.00020706,2]
[379706295,1755377454243,-786.28,0.00020706,2]
[379706296,1755377454252,-480.0,0.00020706,2]
[379706297,1755377454261,-1203.56,0.00020706,2]
[379706298,1755377454271,-535.65,0.00020706,2]
[379706299,1755377454282,-480.0,0.00020706,2]
[379706300,1755377454293,-193.754519,0.00020706,2]
[379706301,1755377454302,-773.99,0.00020706,2]
[379706302,1755377454312,-193.754519,0.00020706,2]
[379706303,1755377454321,-2255.21,0.00020706,2]
[379706304,1755377454332,-350.62786174,0.00020706,2]
[379706305,1755377454342,-480.0,0.00020706,2]
[379706306,1755377454352,-480.0,0.00020706,2]
[379706307,1755377454363,-480.0,0.00020706,2]
[379706308,1755377454374,-771.06,0.00020706,2]
[379706309,1755377454384,-183.34684667,0.00020706,2]
[379706310,1755377454394,-848.97,0.00020706,2]
[379706311,1755377454404,-480.0,0.00020706,2]
[379706312,1755377454413,-480.0,0.00020706,2]
[379706313,1755377454423,-480.0,0.00020706,2]
[379706314,1755377454432,-480.0,0.00020706,2]
[379706315,1755377454442,-2604.03,0.00020706,2]
[379706316,1755377454451,-512.48,0.00020706,2]
[379706317,1755377454460,-1092.56,0.00020706,2]
[379706318,1755377454470,-506.65,0.00020706,2]
[379706319,1755377454479,-783.0,0.00020706,2]
[379706320,1755377454489,-1096.81,0.00020706,2]
[379706321,1755377454498,-480.0,0.00020706,2]
[379706322,1755377454507,-588.94,0.00020706,2]
[379706323,1755377454517,-151.0,0.00020706,2]
[379706324,1755377454527,-572.9,0.00020706,2]
[379706325,1755377454536,-685.01,0.00020706,2]
[379706326,1755377454545,-860.44,0.00020706,2]
[379706327,1755377454555,-480.0,0.00020706,2]
[379706328,1755377454564,-565.09,0.00020706,2]
[379706329,1755377454574,-480.0,0.00020706,2]
[379706330,1755377454583,-480.0,0.00020706,2]
[379706331,1755377454592,-615.56,0.00020706,2]
[379706333,1755377454602,-500.0,0.00020706,2]
[379706335,1755377454612,-151.0,0.00020707,2]
[379706337,1755377454621,-151.0,0.00020707,2]
[379706339,1755377454631,-350.70611391,0.00020707,2]
[379706341,1755377454640,-151.0,0.00020707,2]
[379706343,1755377454649,-198.0,0.00020707,2]
[379706345,1755377454659,-152.27317636,0.00020707,2]
[379706347,1755377454668,-198.0,0.00020707,2]
[379706348,1755377454678,-1100.0,0.00020707,2]
[379706349,1755377454686,-198.0,0.00020707,2]
[379706350,1755377454696,-151.0,0.00020707,2]
[379706351,1755377454706,-151.0,0.00020707,2]
[379706352,1755377454716,-151.0,0.00020707,2]
[379706354,1755377454727,-151.0,0.00020707,2]
[379706355,1755377454736,-151.0,0.00020707,2]
[379706357,1755377454746,-179.3342,0.00020707,2]
[379706358,1755377454756,-151.0,0.00020707,2]
[379706359,1755377454766,-151.0,0.00020707,2]
[379706360,1755377454775,-191.360955,0.00020707,2]
[379706361,1755377454785,-377.298241,0.00020707,2]
[379706362,1755377454794,-164.933933,0.00020707,2]
[379706363,1755377454804,-377.298241,0.00020707,2]
[379706364,1755377454813,-164.933933,0.00020707,2]
[379706365,1755377454823,-725.135236,0.00020707,2]
[379706366,1755377454832,-725.135236,0.00020707,2]
[379706367,1755377454842,-151.0,0.00020707,2]
[379706368,1755377454851,-151.0,0.00020707,2]
[379706369,1755377454861,-207.161362,0.00020707,2]
[379706370,1755377454871,-151.0,0.00020707,2]
[379706371,1755377454881,-152.920102,0.00020707,2]
[379706372,1755377454891,-152.920102,0.00020707,2]
[379706373,1755377454900,-152.920102,0.00020707,2]
[379706374,1755377454910,-152.920102,0.00020707,2]
[379706375,1755377454920,-480.0,0.00020707,2]
[379706376,1755377454930,-496.360995,0.00020707,2]
[379706377,1755377454940,-496.360995,0.00020707,2]
[379706378,1755377454949,-151.0,0.00020707,2]
[379706379,1755377454960,-226.140573,0.00020707,2]
[379706380,1755377454970,-226.140573,0.00020707,2]
[379706381,1755377454979,-247.378836,0.00020707,2]
[379706382,1755377454989,-247.378836,0.00020707,2]
[379706383,1755377454999,-980.18,0.00020707,2]
[379706384,1755377455008,-400.0,0.00020707,2]
[379706385,1755377455018,-480.0,0.00020707,2]
[379706386,1755377455027,-480.0,0.00020707,2]
[379706387,1755377455037,-480.0,0.00020707,2]
[379706388,1755377455047,-480.0,0.00020707,2]
[379706389,1755377455056,-151.0,0.00020707,2]
[379706390,1755377455066,-151.0,0.00020707,2]
[379706391,1755377455075,-480.0,0.00020707,2]
[379706392,1755377455085,-480.0,0.00020707,2]
[379706393,1755377455095,-480.0,0.00020707,2]
[379706394,1755377455104,-480.0,0.00020707,2]
[379706395,1755377455113,-151.0,0.00020707,2]
[379706396,1755377455123,-151.0,0.00020707,2]
[379706397,1755377455132,-570.68173824,0.00020707,2]
[379706398,1755377455141,-295.80496685,0.00020707,2]
[379706399,1755377455150,-590.52483999,0.00020707,2]
[379706400,1755377455160,-480.0,0.00020707,2]
[379706401,1755377455169,-480.0,0.00020707,2]
[379706402,1755377455179,-151.0,0.00020707,2]
[379706403,1755377455188,-480.0,0.00020707,2]
[379706404,1755377455197,-480.0,0.00020707,2]
[379706405,1755377455207,-620.96,0.00020707,2]
[379706406,1755377455216,-480.0,0.00020707,2]
[379706407,1755377455226,-480.0,0.00020707,2]
[379706408,1755377455235,-480.0,0.00020707,2]
[379706409,1755377455246,-480.0,0.00020707,2]
[379706410,1755377455256,-480.0,0.00020707,2]
[379706411,1755377455266,-480.0,0.00020707,2]
[379706412,1755377455275,-480.0,0.00020707,2]
[379706413,1755377455285,-151.0,0.00020707,2]
[379706414,1755377455295,-151.0,0.00020707,2]
[379706415,1755377455304,-480.0,0.00020707,2]
[379706416,1755377455314,-735.06,0.00020707,2]
[379706417,1755377455323,-480.0,0.00020707,2]
[379706418,1755377455333,-480.0,0.00020707,2]
[379706419,1755377455342,-480.0,0.00020707,2]
[379706420,1755377455351,-652.24,0.00020707,2]
[379706421,1755377455360,-513.76125615,0.00020707,2]
[379706422,1755377455370,-480.0,0.00020707,2]
[379706423,1755377455380,-508.6,0.00020707,2]
[379706424,1755377455389,-480.0,0.00020707,2]
[379706425,1755377455399,-480.0,0.00020707,2]
[379706426,1755377455409,-2003.287501,0.00020707,2]
[379706427,1755377455419,-151.0,0.00020707,2]
[379706428,1755377455428,-480.0,0.00020707,2]
[379706429,1755377455438,-480.0,0.00020707,2]
[379706430,1755377455447,-2003.287501,0.00020707,2]
[379706431,1755377455457,-480.0,0.00020707,2]
[379706432,1755377455467,-480.0,0.00020707,2]
[379706433,1755377455476,-480.0,0.00020707,2]
[379706434,1755377455486,-480.0,0.00020707,2]
[379706435,1755377455495,-480.0,0.00020707,2]
[379706436,1755377455505,-500.0,0.00020707,2]
[379706437,1755377455632,-480.0,0.00020707,2]
[379706438,1755377455641,-480.0,0.00020707,2]
[379706439,1755377455651,-480.0,0.00020707,2]
[379706440,1755377455660,-480.0,0.00020707,2]
[379706441,1755377455670,-480.0,0.00020707,2]
[379706442,1755377455679,-480.0,0.00020707,2]
[379706443,1755377455689,-480.0,0.00020707,2]
[379706444,1755377455698,-480.0,0.00020707,2]
[379706445,1755377455707,-700.53,0.00020707,2]
[379706446,1755377455718,-480.0,0.00020707,2]
[379706447,1755377455729,-262.38,0.00020707,2]
[379706448,1755377455738,-480.0,0.00020707,2]
[379706449,1755377455748,-480.0,0.00020707,2]
[379706450,1755377455758,-652.037804,0.00020707,2]
[379706451,1755377455768,-887.43,0.00020707,2]
[379706452,1755377455777,-480.0,0.00020707,2]
[379706453,1755377455786,-652.037804,0.00020707,2]
[379706454,1755377455795,-691.63,0.00020707,2]
[379706455,1755377455806,-513.19,0.00020707,2]
[379706456,1755377455815,-480.0,0.00020707,2]
[379706457,1755377455824,-851.69,0.00020707,2]
[379706458,1755377455834,-151.0,0.00020707,2]
[379706459,1755377455844,-151.0,0.00020707,2]
[379706460,1755377455853,-151.0,0.00020707,2]
[379706461,1755377455862,-480.0,0.00020707,2]
[379706462,1755377455871,-480.0,0.00020707,2]
[379706463,1755377455881,-420.61253332,0.00020707,2]
[379706464,1755377455890,-480.0,0.00020707,2]
[379706465,1755377455899,-480.0,0.00020707,2]
[379706466,1755377455908,-151.0,0.00020707,2]
[379706467,1755377455917,-603.38,0.00020707,2]
[379706468,1755377455927,-440.0,0.00020707,2]
[379706469,1755377455937,-480.0,0.00020707,2]
[379706470,1755377455947,-10981.53,0.00020707,2]
[379706471,1755377455956,-164.769487,0.00020707,2]
[379706472,1755377455965,-164.769487,0.00020707,2]
[379706473,1755377455974,-480.0,0.00020707,2]
[379706474,1755377455984,-480.0,0.00020707,2]
[379706475,1755377455993,-1711.57,0.00020707,2]
[379706476,1755377456003,-480.0,0.00020707,2]
[379706477,1755377456012,-151.0,0.00020707,2]
[379706478,1755377456021,-1936.76,0.00020707,2]
[379706479,1755377456030,-662.85,0.00020707,2]
[379706480,1755377456040,-480.0,0.00020707,2]
[379706481,1755377456049,-1000.0,0.00020707,2]
[379706482,1755377456059,-722.48,0.00020707,2]
[379706483,1755377456068,-480.0,0.00020707,2]
[379706484,1755377456077,-480.0,0.00020707,2]
[379706485,1755377456087,-480.0,0.00020707,2]
[379706486,1755377456096,-883.69,0.00020707,2]
[379706487,1755377456106,-488.59770756,0.00020707,2]
[379706488,1755377456115,-460.0,0.00020707,2]
[379706489,1755377456124,-4000.54,0.00020707,2]
[379706490,1755377456134,-480.0,0.00020707,2]
[379706491,1755377456143,-480.0,0.00020707,2]
[379706492,1755377456152,-480.0,0.00020707,2]
[379706493,1755377456161,-8437.53,0.00020707,2]
[379706494,1755377456171,-193.754519,0.00020707,2]
[379706495,1755377456180,-193.754519,0.00020707,2]
[379706496,1755377456190,-480.0,0.00020707,2]
[379706497,1755377456199,-166.79607639,0.00020707,2]
[379706498,1755377456208,-526.04,0.00020707,2]
[379706499,1755377456218,-4308.84,0.00020707,2]
[379706500,1755377456228,-480.0,0.00020707,2]
[379706501,1755377456237,-480.0,0.00020707,2]
[379706502,1755377456247,-1553.89,0.00020707,2]
[379706503,1755377456256,-491.93,0.00020707,2]
[379706504,1755377456266,-151.0,0.00020707,2]
[379706505,1755377456277,-480.0,0.00020707,2]
[379706506,1755377456286,-480.0,0.00020707,2]
[379706507,1755377456296,-1150.12,0.00020707,2]
[379706508,1755377456305,-151.0,0.00020708,2]
[379706509,1755377456315,-151.0,0.00020708,2]
[379706510,1755377456326,-239.077065,0.00020708,2]
[379706511,1755377456335,-239.077065,0.00020708,2]
[379706512,1755377456344,-151.0,0.00020708,2]
[379706513,1755377456353,-151.0,0.00020708,2]
[379706514,1755377456363,-191.360955,0.00020708,2]
[379706515,1755377456372,-164.933933,0.00020708,2]
[379706516,1755377456381,-164.933933,0.00020708,2]
[379706517,1755377456391,-725.135236,0.00020708,2]
[379706518,1755377456400,-725.135236,0.00020708,2]
[379706519,1755377456410,-496.360995,0.00020708,2]
[379706520,1755377456419,-496.360995,0.00020708,2]
[379706521,1755377456429,-151.0,0.00020708,2]
[379706522,1755377456438,-652.037804,0.00020708,2]
[379706523,1755377456447,-652.037804,0.00020708,2]
[379706524,1755377456457,-164.769487,0.00020708,2]
[379706525,1755377456466,-164.769487,0.00020708,2]
[379706526,1755377456476,-1000.0,0.00020708,2]
[379706527,1755377456486,-1000.0,0.00020708,2]
[379706528,1755377456495,-1000.0,0.00020708,2]
[379706529,1755377456504,-1000.0,0.00020708,2]
[379706530,1755377456513,-1000.0,0.00020708,2]
[379706531,1755377456523,-1000.0,0.00020708,2]
[379706532,1755377456532,-151.0,0.00020709,2]
[379706533,1755377456541,-151.0,0.00020709,2]
[379706534,1755377456550,-151.0,0.00020709,2]
[379706535,1755377456559,-151.0,0.00020709,2]
[379706536,1755377456568,-151.0,0.00020709,2]
[379706537,1755377456577,-151.0,0.00020709,2]
[379706538,1755377456586,-151.0,0.00020709,2]
[379706539,1755377456596,-151.0,0.00020709,2]
[379706540,1755377456605,-239.077065,0.00020709,2]
[379706541,1755377456614,-239.077065,0.00020709,2]
[379706542,1755377456623,-151.0,0.00020709,2]
[379706543,1755377456632,-151.0,0.00020709,2]
[379706544,1755377456642,-300.578606,0.00020709,2]
[379706545,1755377456651,-151.0,0.00020709,2]
[379706546,1755377456660,-151.0,0.00020709,2]
[379706547,1755377456669,-151.0,0.00020709,2]
[379706548,1755377456678,-151.0,0.00020709,2]
[379706549,1755377456688,-151.0,0.00020709,2]
[379706550,1755377456697,-151.0,0.00020709,2]
[379706551,1755377456706,-151.0,0.00020709,2]
[379706552,1755377456716,-151.0,0.00020709,2]
[379706553,1755377456729,-377.298241,0.00020709,2]
[379706554,1755377456738,-377.298241,0.00020709,2]
[379706555,1755377456747,-605.73042583,0.00020709,2]
[379706556,1755377456757,-151.0,0.00020709,2]
[379706557,1755377456766,-152.920102,0.00020709,2]
[379706558,1755377456775,-152.920102,0.00020709,2]
[379706559,1755377456785,-151.0,0.00020709,2]
[379706560,1755377456794,-226.140573,0.00020709,2]
[379706561,1755377456803,-226.140573,0.00020709,2]
[379706562,1755377456813,-247.378836,0.00020709,2]
[379706563,1755377456823,-247.378836,0.00020709,2]
[379706564,1755377456832,-629.33911433,0.00020709,2]
[379706565,1755377456841,-425.22356688,0.00020709,2]
[379706566,1755377456850,-480.0,0.00020709,2]
[379706567,1755377456859,-480.0,0.00020709,2]
[379706568,1755377456869,-480.0,0.00020709,2]
[379706569,1755377456878,-151.0,0.00020709,2]
[379706570,1755377456888,-151.0,0.00020709,2]
[379706571,1755377456897,-2003.287501,0.00020709,2]
[379706572,1755377456907,-2003.287501,0.00020709,2]
[379706573,1755377456916,-151.0,0.00020709,2]
[379706574,1755377456925,-151.0,0.00020709,2]
[379706575,1755377456934,-151.0,0.00020709,2]
[379706576,1755377456943,-151.0,0.00020709,2]
[379706577,1755377456952,-655.10258062,0.00020709,2]
[379706578,1755377456962,-193.754519,0.00020709,2]
[379706579,1755377456971,-193.754519,0.00020709,2]
[379706580,1755377456980,-151.0,0.00020709,2]
[379706581,1755377456989,-75670.57923311,0.00020709,2]
[379706582,1755377457507,-370.888998,0.00020432,2]
[379706583,1755377457519,-328.42957638,0.00020432,2]
[379706584,1755377457531,-300.68142562,0.00020432,2]
[379706585,1755377457540,-295.817864,0.00020432,2]
[379706586,1755377457549,-101.53257433,0.00020709,2]
[379706597,1755377491114,39789.75437185,0.00020058,2]
[379706599,1755377587120,1051.04262772,0.00020058,2]
[379706600,1755377653378,301989.14454725,0.00020059,2]
[379706602,1755377779364,919.66229922,0.00020057,2]
[379706603,1755377925115,1995.61944711,0.00020059,2]
[379706604,1755377970233,804.70451187,0.00020057,2]
[379706605,1755378148651,5000.0,0.0001974,2]
[379706606,1755378160826,704.11644786,0.00020057,2]
[379706608,1755378265872,1596.49555768,0.00020058,2]
[379706609,1755378269551,250.0,0.00019934,2]
[379706611,1755378352789,616.10189186,0.00020056,2]
[379706612,1755378548634,539.08915536,0.00020056,2]
[379706613,1755378549546,200.0,0.00028767,120]
[379706633,1755378606500,1430.25074747,0.00020058,2]
[379706649,1755378632536,-278.0,0.00020144,2]
[379706650,1755378632547,-300.0,0.00020145,2]
[379706651,1755378632557,-300.0,0.00020145,2]
[379706653,1755378632567,-300.0,0.00020145,2]
[379706654,1755378632576,-300.0,0.00020145,2]
[379706655,1755378632586,-300.0,0.00020145,2]
[379706656,1755378632596,-1200.0,0.00020145,2]
[379706657,1755378632605,-151.0,0.00020146,2]
[379706658,1755378632615,-151.0,0.00020146,2]